[Event "Titled Tuesday Blitz November 01 Early 2022"]
[White "Mirzoev, Azer"]
[Black "Le, Tuan Minh"]
[WhiteFideId "13400304"]
[BlackFideId "12401153"]
[WhiteElo "2525"]
[BlackElo "2530"]
[Result "0-1"]
[Round "06"]
[TimeControl "180+1"]
[Date "2022.11.01"]
[WhiteClock "0:00:06"]
[BlackClock "0:00:05"]

1. d4 {[%clk 0:02:59]}  d5 {[%clk 0:03:00]} 2. Nf3 {[%clk 0:03:00]}  Nf6 {[%clk 0:03:00]} 3. Bf4 {[%clk 0:03:00]}  c5 {[%clk 0:03:00]} 4. e3 {[%clk 0:03:00]}  Qb6 {[%clk 0:03:00]} 5. Nc3 {[%clk 0:03:00]}  Bd7 {[%clk 0:03:00]} 6. Rb1 {[%clk 0:02:55]}  e6 {[%clk 0:03:01]} 7. Be2 {[%clk 0:02:53]}  Nc6 {[%clk 0:03:01]} 8. O-O {[%clk 0:02:52]}  cxd4 {[%clk 0:02:58]} 9. exd4 {[%clk 0:02:51]}  Be7 {[%clk 0:02:58]} 10. a3 {[%clk 0:02:40]}  O-O {[%clk 0:02:57]} 11. Be3 {[%clk 0:02:39]}  Rac8 {[%clk 0:02:52]} 12. h3 {[%clk 0:02:38]}  Qc7 {[%clk 0:02:50]} 13. Re1 {[%clk 0:02:29]}  a6 {[%clk 0:02:49]} 14. Bd3 {[%clk 0:02:29]}  Na5 {[%clk 0:02:39]} 15. Ne2 {[%clk 0:02:22]}  Nc4 {[%clk 0:02:38]} 16. Bf4 {[%clk 0:02:22]}  Bd6 {[%clk 0:02:38]} 17. Bxd6 {[%clk 0:02:21]}  Qxd6 {[%clk 0:02:39]} 18. c3 {[%clk 0:02:18]}  b5 {[%clk 0:02:32]} 19. Ng3 {[%clk 0:02:17]}  a5 {[%clk 0:02:29]} 20. Ne5 {[%clk 0:02:16]}  b4 {[%clk 0:02:17]} 21. axb4 {[%clk 0:02:14]}  axb4 {[%clk 0:02:17]} 22. Bxc4 {[%clk 0:01:35]}  dxc4 {[%clk 0:02:16]} 23. Ne4 {[%clk 0:01:30]}  Nxe4 {[%clk 0:02:15]} 24. Rxe4 {[%clk 0:01:31]}  Bc6 {[%clk 0:02:16]} 25. Nxc6 {[%clk 0:01:26]}  Qxc6 {[%clk 0:02:16]} 26. Qe2 {[%clk 0:01:25]}  Qa4 {[%clk 0:02:01]} 27. Re1 {[%clk 0:01:05]}  Qb3 {[%clk 0:01:50]} 28. Qd2 {[%clk 0:01:05]}  Rfd8 {[%clk 0:01:42]} 29. Rg4 {[%clk 0:00:59]}  g6 {[%clk 0:01:32]} 30. h4 {[%clk 0:00:57]}  Rd5 {[%clk 0:01:33]} 31. Rg5 {[%clk 0:00:52]}  bxc3 {[%clk 0:01:31]} 32. bxc3 {[%clk 0:00:52]}  Rcd8 {[%clk 0:01:31]} 33. g3 {[%clk 0:00:49]}  h5 {[%clk 0:01:20]} 34. Rxd5 {[%clk 0:00:48]}  Rxd5 {[%clk 0:01:20]} 35. Qe3 {[%clk 0:00:48]}  Qc2 {[%clk 0:01:09]} 36. Kg2 {[%clk 0:00:46]}  Ra5 {[%clk 0:00:56]} 37. Re2 {[%clk 0:00:46]}  Qb1 {[%clk 0:00:52]} 38. Re1 {[%clk 0:00:45]}  Qb2 {[%clk 0:00:49]} 39. Re2 {[%clk 0:00:45]}  Qb1 {[%clk 0:00:49]} 40. Re1 {[%clk 0:00:45]}  Qb5 {[%clk 0:00:43]} 41. Qf3 {[%clk 0:00:43]}  Qb2 {[%clk 0:00:27]} 42. Re3 {[%clk 0:00:33]}  Qc1 {[%clk 0:00:18]} 43. Kh2 {[%clk 0:00:22]}  Ra1 {[%clk 0:00:19]} 44. Re5 {[%clk 0:00:18]}  Qg1+ {[%clk 0:00:16]} 45. Kh3 {[%clk 0:00:18]}  Rf1 {[%clk 0:00:15]} 46. Re2 {[%clk 0:00:17]}  Rc1 {[%clk 0:00:14]} 47. Qg2 {[%clk 0:00:13]}  Qxg2+ {[%clk 0:00:12]} 48. Kxg2 {[%clk 0:00:13]}  Rxc3 {[%clk 0:00:13]} 49. Ra2 {[%clk 0:00:08]}  Kg7 {[%clk 0:00:13]} 50. Ra7 {[%clk 0:00:08]}  Rd3 {[%clk 0:00:12]} 51. Rd7 {[%clk 0:00:08]}  Kf8 {[%clk 0:00:05]} 52. Rd8+ {[%clk 0:00:06]}  Ke7 {[%clk 0:00:06]} 53. Rc8 {[%clk 0:00:06]}  Rxd4 {[%clk 0:00:06]} 54. Rc7+ {[%clk 0:00:06]}  Kf6 {[%clk 0:00:06]} 55. Kf3 {[%clk 0:00:06]}  e5 {[%clk 0:00:07]} 56. Ke3 {[%clk 0:00:06]}  Ke6 {[%clk 0:00:07]} 57. Rc6+ {[%clk 0:00:07]}  Kf5 {[%clk 0:00:08]} 58. Rc7 {[%clk 0:00:07]}  f6 {[%clk 0:00:08]} 59. Rc6 {[%clk 0:00:07]}  g5 {[%clk 0:00:07]} 60. hxg5 {[%clk 0:00:07]}  fxg5 {[%clk 0:00:08]} 61. Rc8 {[%clk 0:00:07]}  h4 {[%clk 0:00:08]} 62. gxh4 {[%clk 0:00:07]}  gxh4 {[%clk 0:00:09]} 63. Rf8+ {[%clk 0:00:07]}  Kg6 {[%clk 0:00:09]} 64. Rh8 {[%clk 0:00:06]}  h3 {[%clk 0:00:08]} 65. f3 {[%clk 0:00:06]}  c3 {[%clk 0:00:07]} 66. Rg8+ {[%clk 0:00:06]}  Kf7 {[%clk 0:00:06]} 67. Rc8 {[%clk 0:00:06]}  h2 {[%clk 0:00:05]} 0-1


[Site "https://www.chess.com"]

[Event "Titled Tuesday Blitz November 01 Early 2022"]
[White "Mladenovic, Stefan"]
[Black "Chernomordik, Pavel"]
[WhiteFideId "942227"]
[BlackFideId "2804530"]
[WhiteElo "2337"]
[BlackElo "2217"]
[Result "1-0"]
[Round "06"]
[TimeControl "180+1"]
[Date "2022.11.02"]
[WhiteClock "0:00:04"]
[BlackClock "0:00:15"]

1. d4 {[%clk 0:03:00]}  g6 {[%clk 0:03:00]} 2. Nf3 {[%clk 0:03:00]}  Bg7 {[%clk 0:03:00]} 3. Bf4 {[%clk 0:03:01]}  d6 {[%clk 0:03:00]} 4. e3 {[%clk 0:03:01]}  Nd7 {[%clk 0:03:00]} 5. h3 {[%clk 0:02:58]}  e5 {[%clk 0:03:00]} 6. Bh2 {[%clk 0:02:58]}  Qe7 {[%clk 0:03:00]} 7. Be2 {[%clk 0:02:58]}  Nh6 {[%clk 0:02:58]} 8. O-O {[%clk 0:02:58]}  O-O {[%clk 0:02:57]} 9. c4 {[%clk 0:02:59]}  f5 {[%clk 0:02:57]} 10. Nc3 {[%clk 0:02:59]}  c6 {[%clk 0:02:57]} 11. Rc1 {[%clk 0:02:59]}  g5 {[%clk 0:02:54]} 12. b4 {[%clk 0:02:58]}  g4 {[%clk 0:02:53]} 13. hxg4 {[%clk 0:02:52]}  Nxg4 {[%clk 0:02:52]} 14. Bg3 {[%clk 0:02:49]}  e4 {[%clk 0:02:33]} 15. Nd2 {[%clk 0:02:47]}  Ndf6 {[%clk 0:02:27]} 16. Bxg4 {[%clk 0:02:34]}  Nxg4 {[%clk 0:02:25]} 17. Qe2 {[%clk 0:02:33]}  Rf6 {[%clk 0:02:07]} 18. Bf4 {[%clk 0:02:30]}  h5 {[%clk 0:01:57]} 19. f3 {[%clk 0:02:29]}  exf3 {[%clk 0:01:51]} 20. gxf3 {[%clk 0:02:29]}  Nh6 {[%clk 0:01:48]} 21. Kf2 {[%clk 0:02:21]}  Bd7 {[%clk 0:01:37]} 22. Bg5 {[%clk 0:02:18]}  Re8 {[%clk 0:01:34]} 23. Bxf6 {[%clk 0:02:16]}  Qxf6 {[%clk 0:01:33]} 24. Rg1 {[%clk 0:02:17]}  f4 {[%clk 0:01:29]} 25. Nde4 {[%clk 0:02:14]}  Qh4+ {[%clk 0:01:27]} 26. Kf1 {[%clk 0:02:02]}  Bh3+ {[%clk 0:01:26]} 27. Rg2 {[%clk 0:02:01]}  Nf5 {[%clk 0:01:22]} 28. exf4 {[%clk 0:01:53]}  Nxd4 {[%clk 0:01:20]} 29. Qd3 {[%clk 0:01:47]}  Qxf4 {[%clk 0:01:13]} 30. Re1 {[%clk 0:00:32]}  Rf8 {[%clk 0:01:12]} 31. Ne2 {[%clk 0:00:23]}  Qxf3+ {[%clk 0:01:05]} 32. Qxf3 {[%clk 0:00:21]}  Rxf3+ {[%clk 0:01:04]} 33. Kg1 {[%clk 0:00:17]}  Bxg2 {[%clk 0:01:01]} 34. Nxd4 {[%clk 0:00:16]}  Bxd4+ {[%clk 0:00:55]} 35. Kxg2 {[%clk 0:00:16]}  Ra3 {[%clk 0:00:55]} 36. Nxd6 {[%clk 0:00:08]}  Rxa2+ {[%clk 0:00:55]} 37. Kf3 {[%clk 0:00:05]}  Rf2+ {[%clk 0:00:54]} 38. Ke4 {[%clk 0:00:05]}  Bc3 {[%clk 0:00:54]} 39. Rg1+ {[%clk 0:00:05]}  Kf8 {[%clk 0:00:54]} 40. b5 {[%clk 0:00:05]}  cxb5 {[%clk 0:00:46]} 41. cxb5 {[%clk 0:00:06]}  Bb4 {[%clk 0:00:39]} 42. Nxb7 {[%clk 0:00:05]}  Rf7 {[%clk 0:00:38]} 43. Nd8 {[%clk 0:00:05]}  Re7+ {[%clk 0:00:38]} 44. Kf5 {[%clk 0:00:04]}  Rd7 {[%clk 0:00:34]} 45. Nc6 {[%clk 0:00:01]}  Bc5 {[%clk 0:00:34]} 46. Ke6 {[%clk 0:00:02]}  Rd6+ {[%clk 0:00:30]} 47. Ke5 {[%clk 0:00:02]}  Rxc6 {[%clk 0:00:30]} 48. Rf1+ {[%clk 0:00:02]}  Ke7 {[%clk 0:00:28]} 49. bxc6 {[%clk 0:00:03]}  Bd6+ {[%clk 0:00:25]} 50. Kd5 {[%clk 0:00:03]}  Bc7 {[%clk 0:00:25]} 51. Rh1 {[%clk 0:00:03]}  a5 {[%clk 0:00:22]} 52. Rxh5 {[%clk 0:00:03]}  Bg3 {[%clk 0:00:19]} 53. Rh7+ {[%clk 0:00:03]}  Kd8 {[%clk 0:00:19]} 54. Ra7 {[%clk 0:00:04]}  Bc7 {[%clk 0:00:17]} 55. Ke6 {[%clk 0:00:03]}  Kc8 {[%clk 0:00:16]} 56. Ra8+ {[%clk 0:00:02]}  Bb8 {[%clk 0:00:16]} 57. Rxb8+ {[%clk 0:00:02]}  Kxb8 {[%clk 0:00:16]} 58. Kd7 {[%clk 0:00:03]}  a4 {[%clk 0:00:15]} 59. c7+ {[%clk 0:00:04]} 1-0


[Site "https://www.chess.com"]

[Event "Titled Tuesday Blitz November 01 Early 2022"]
[White "Myshakov, Fyodor"]
[Black "Principe, Gerson"]
[WhiteFideId "14111284"]
[BlackFideId "3804550"]
[WhiteElo "2310"]
[BlackElo "2280"]
[Result "1-0"]
[Round "06"]
[TimeControl "180+1"]
[Date "2022.11.02"]
[WhiteClock "0:00:42"]
[BlackClock "0:00:01"]

1. c4 {[%clk 0:02:58]}  e6 {[%clk 0:02:52]} 2. Nc3 {[%clk 0:02:59]}  d5 {[%clk 0:02:50]} 3. cxd5 {[%clk 0:03:00]}  exd5 {[%clk 0:02:48]} 4. d4 {[%clk 0:03:00]}  Nf6 {[%clk 0:02:46]} 5. Nf3 {[%clk 0:03:01]}  c6 {[%clk 0:02:43]} 6. Bg5 {[%clk 0:03:02]}  Bd6 {[%clk 0:02:43]} 7. Qc2 {[%clk 0:03:01]}  Bg4 {[%clk 0:02:31]} 8. Ne5 {[%clk 0:02:58]}  Bh5 {[%clk 0:02:29]} 9. g4 {[%clk 0:02:53]}  Bg6 {[%clk 0:02:28]} 10. Nxg6 {[%clk 0:02:53]}  hxg6 {[%clk 0:02:28]} 11. h3 {[%clk 0:02:49]}  Nbd7 {[%clk 0:02:24]} 12. e3 {[%clk 0:02:48]}  Qa5 {[%clk 0:02:08]} 13. Bg2 {[%clk 0:02:42]}  Bb4 {[%clk 0:01:38]} 14. a3 {[%clk 0:02:34]}  Bxc3+ {[%clk 0:01:36]} 15. bxc3 {[%clk 0:02:33]}  Rc8 {[%clk 0:01:34]} 16. O-O {[%clk 0:02:29]}  O-O {[%clk 0:01:34]} 17. c4 {[%clk 0:02:28]}  dxc4 {[%clk 0:01:23]} 18. Bxf6 {[%clk 0:02:28]}  Nxf6 {[%clk 0:01:21]} 19. Qxc4 {[%clk 0:02:28]}  Qc7 {[%clk 0:01:12]} 20. Rab1 {[%clk 0:02:26]}  b6 {[%clk 0:01:09]} 21. Rfc1 {[%clk 0:02:24]}  c5 {[%clk 0:01:09]} 22. dxc5 {[%clk 0:02:23]}  bxc5 {[%clk 0:01:01]} 23. Rb7 {[%clk 0:02:22]}  Qa5 {[%clk 0:01:02]} 24. a4 {[%clk 0:02:18]}  g5 {[%clk 0:00:54]} 25. Rb5 {[%clk 0:02:03]}  Qd2 {[%clk 0:00:48]} 26. Rxc5 {[%clk 0:01:56]}  Rxc5 {[%clk 0:00:42]} 27. Qxc5 {[%clk 0:01:57]}  Rd8 {[%clk 0:00:35]} 28. Rf1 {[%clk 0:01:56]}  a5 {[%clk 0:00:29]} 29. Qxg5 {[%clk 0:01:50]}  Qb4 {[%clk 0:00:28]} 30. Qb5 {[%clk 0:01:47]}  Rb8 {[%clk 0:00:27]} 31. Qxb4 {[%clk 0:01:46]}  Rxb4 {[%clk 0:00:28]} 32. Bc6 {[%clk 0:01:45]}  Kf8 {[%clk 0:00:22]} 33. Rd1 {[%clk 0:01:37]}  Rc4 {[%clk 0:00:22]} 34. Bb5 {[%clk 0:01:30]}  Rc7 {[%clk 0:00:20]} 35. Rd4 {[%clk 0:01:23]}  Ke7 {[%clk 0:00:20]} 36. Kg2 {[%clk 0:01:21]}  g6 {[%clk 0:00:19]} 37. h4 {[%clk 0:01:20]}  Ke6 {[%clk 0:00:13]} 38. Rc4 {[%clk 0:01:15]}  Rxc4 {[%clk 0:00:09]} 39. Bxc4+ {[%clk 0:01:15]}  Ke7 {[%clk 0:00:10]} 40. Kf3 {[%clk 0:01:13]}  Nd7 {[%clk 0:00:10]} 41. Bb5 {[%clk 0:01:13]}  Ne5+ {[%clk 0:00:09]} 42. Kf4 {[%clk 0:01:12]}  f6 {[%clk 0:00:09]} 43. g5 {[%clk 0:01:08]}  Nf7 {[%clk 0:00:06]} 44. Bd3 {[%clk 0:01:02]}  Ne5 {[%clk 0:00:02]} 45. Be4 {[%clk 0:01:00]}  Kf7 {[%clk 0:00:02]} 46. f3 {[%clk 0:00:54]}  Kg7 {[%clk 0:00:02]} 47. Bd5 {[%clk 0:00:45]}  Nd3+ {[%clk 0:00:01]} 48. Kg3 {[%clk 0:00:42]} 1-0


[Site "https://www.chess.com"]

[Event "Titled Tuesday Blitz November 01 Early 2022"]
[White "Namitbir Singh Walia"]
[Black "Ismayil, Malak"]
[WhiteFideId "35071068"]
[BlackFideId "13412604"]
[WhiteElo "2239"]
[BlackElo "1879"]
[Result "0-1"]
[Round "06"]
[TimeControl "180+1"]
[Date "2022.11.02"]
[WhiteClock "0:00:06"]
[BlackClock "0:00:06"]

1. d4 {[%clk 0:03:00]}  Nf6 {[%clk 0:02:59]} 2. c4 {[%clk 0:03:01]}  g6 {[%clk 0:02:58]} 3. Nf3 {[%clk 0:03:01]}  Bg7 {[%clk 0:02:58]} 4. g3 {[%clk 0:03:01]}  O-O {[%clk 0:02:59]} 5. Bg2 {[%clk 0:03:02]}  d6 {[%clk 0:02:59]} 6. O-O {[%clk 0:03:02]}  c6 {[%clk 0:03:00]} 7. Nc3 {[%clk 0:03:01]}  Nbd7 {[%clk 0:03:00]} 8. e4 {[%clk 0:02:59]}  Qc7 {[%clk 0:02:56]} 9. Qc2 {[%clk 0:02:55]}  e5 {[%clk 0:02:56]} 10. h3 {[%clk 0:02:44]}  Re8 {[%clk 0:02:50]} 11. Rd1 {[%clk 0:02:39]}  Nb6 {[%clk 0:02:46]} 12. b3 {[%clk 0:02:34]}  h6 {[%clk 0:02:24]} 13. Bb2 {[%clk 0:02:33]}  Kh7 {[%clk 0:02:24]} 14. Rac1 {[%clk 0:02:12]}  Nbd7 {[%clk 0:02:15]} 15. Kh2 {[%clk 0:02:08]}  Nf8 {[%clk 0:02:11]} 16. Ba3 {[%clk 0:02:04]}  Ne6 {[%clk 0:02:07]} 17. dxe5 {[%clk 0:01:53]}  dxe5 {[%clk 0:02:08]} 18. Bd6 {[%clk 0:01:53]}  Qa5 {[%clk 0:02:03]} 19. Bxe5 {[%clk 0:01:50]}  Nc5 {[%clk 0:02:02]} 20. Re1 {[%clk 0:01:00]}  Be6 {[%clk 0:01:54]} 21. Rb1 {[%clk 0:00:54]}  Ncd7 {[%clk 0:01:48]} 22. Bd4 {[%clk 0:00:49]}  Qc7 {[%clk 0:01:40]} 23. Rbd1 {[%clk 0:00:48]}  a5 {[%clk 0:01:39]} 24. Na4 {[%clk 0:00:45]}  Rad8 {[%clk 0:01:32]} 25. Nc5 {[%clk 0:00:30]}  Nxc5 {[%clk 0:01:31]} 26. Bxc5 {[%clk 0:00:31]}  b6 {[%clk 0:01:19]} 27. Be3 {[%clk 0:00:30]}  Nd7 {[%clk 0:01:10]} 28. Rd2 {[%clk 0:00:21]}  Ra8 {[%clk 0:00:54]} 29. Red1 {[%clk 0:00:22]}  Nf8 {[%clk 0:00:53]} 30. Bf4 {[%clk 0:00:19]}  Qc8 {[%clk 0:00:49]} 31. Nd4 {[%clk 0:00:18]}  Bd7 {[%clk 0:00:48]} 32. Be3 {[%clk 0:00:16]}  Ne6 {[%clk 0:00:49]} 33. Nxe6 {[%clk 0:00:17]}  Bxe6 {[%clk 0:00:49]} 34. Rd6 {[%clk 0:00:16]}  Rb8 {[%clk 0:00:46]} 35. f4 {[%clk 0:00:17]}  Bf8 {[%clk 0:00:45]} 36. R6d2 {[%clk 0:00:15]}  c5 {[%clk 0:00:44]} 37. e5 {[%clk 0:00:15]}  Bf5 {[%clk 0:00:43]} 38. Be4 {[%clk 0:00:15]}  Be6 {[%clk 0:00:43]} 39. Bd5 {[%clk 0:00:15]}  Bf5 {[%clk 0:00:35]} 40. Qb2 {[%clk 0:00:14]}  Kg8 {[%clk 0:00:34]} 41. Bg2 {[%clk 0:00:14]}  Bg7 {[%clk 0:00:31]} 42. g4 {[%clk 0:00:14]}  Be6 {[%clk 0:00:31]} 43. Qc2 {[%clk 0:00:14]}  Qc7 {[%clk 0:00:25]} 44. Bf2 {[%clk 0:00:12]}  g5 {[%clk 0:00:25]} 45. fxg5 {[%clk 0:00:06]}  Bxe5+ {[%clk 0:00:24]} 46. Kh1 {[%clk 0:00:07]}  hxg5 {[%clk 0:00:24]} 47. Re2 {[%clk 0:00:07]}  Bf4 {[%clk 0:00:24]} 48. Bd5 {[%clk 0:00:07]}  Rbd8 {[%clk 0:00:23]} 49. Bxe6 {[%clk 0:00:06]}  Rxd1+ {[%clk 0:00:23]} 50. Qxd1 {[%clk 0:00:07]}  Rxe6 {[%clk 0:00:23]} 51. Rxe6 {[%clk 0:00:07]}  fxe6 {[%clk 0:00:24]} 52. Qe2 {[%clk 0:00:08]}  Kf7 {[%clk 0:00:23]} 53. Qe4 {[%clk 0:00:08]}  Qd6 {[%clk 0:00:20]} 54. Kg2 {[%clk 0:00:08]}  Qd2 {[%clk 0:00:14]} 55. a4 {[%clk 0:00:09]}  Kf6 {[%clk 0:00:12]} 56. Kf1 {[%clk 0:00:05]}  Qd1+ {[%clk 0:00:11]} 57. Kg2 {[%clk 0:00:05]}  Qxb3 {[%clk 0:00:12]} 58. h4 {[%clk 0:00:05]}  Qb2 {[%clk 0:00:08]} 59. h5 {[%clk 0:00:05]}  Be5 {[%clk 0:00:04]} 60. h6 {[%clk 0:00:04]}  Bd4 {[%clk 0:00:04]} 61. Qf3+ {[%clk 0:00:04]}  Kg6 {[%clk 0:00:03]} 62. Qe4+ {[%clk 0:00:02]}  Kxh6 {[%clk 0:00:03]} 63. Qxe6+ {[%clk 0:00:03]}  Kg7 {[%clk 0:00:04]} 64. Qd7+ {[%clk 0:00:03]}  Kg6 {[%clk 0:00:04]} 65. Qe6+ {[%clk 0:00:04]}  Bf6 {[%clk 0:00:05]} 66. Qf5+ {[%clk 0:00:04]}  Kg7 {[%clk 0:00:04]} 67. Kf3 {[%clk 0:00:04]}  Qc3+ {[%clk 0:00:04]} 68. Be3 {[%clk 0:00:04]}  Qe5 {[%clk 0:00:04]} 69. Qd7+ {[%clk 0:00:04]}  Kg6 {[%clk 0:00:04]} 70. Qc8 {[%clk 0:00:03]}  Qe7 {[%clk 0:00:04]} 71. Qb8 {[%clk 0:00:02]}  Qe6 {[%clk 0:00:03]} 72. Qa8 {[%clk 0:00:02]}  Qd6 {[%clk 0:00:02]} 73. Qe4+ {[%clk 0:00:03]}  Kf7 {[%clk 0:00:02]} 74. Qf5 {[%clk 0:00:03]}  Qe6 {[%clk 0:00:02]} 75. Qh7+ {[%clk 0:00:03]}  Bg7 {[%clk 0:00:02]} 76. Bxg5 {[%clk 0:00:04]}  Qxc4 {[%clk 0:00:02]} 77. Qf5+ {[%clk 0:00:04]}  Kg8 {[%clk 0:00:02]} 78. Qc8+ {[%clk 0:00:04]}  Kh7 {[%clk 0:00:02]} 79. Qf5+ {[%clk 0:00:05]}  Kg8 {[%clk 0:00:03]} 80. Bf6 {[%clk 0:00:06]}  Qb3+ {[%clk 0:00:02]} 81. Kg2 {[%clk 0:00:05]}  Qa2+ {[%clk 0:00:02]} 82. Kh3 {[%clk 0:00:05]}  Qf7 {[%clk 0:00:02]} 83. Qc8+ {[%clk 0:00:04]}  Kh7 {[%clk 0:00:03]} 84. Bd8 {[%clk 0:00:04]}  Qf3+ {[%clk 0:00:02]} 85. Kh4 {[%clk 0:00:05]}  Qf2+ {[%clk 0:00:02]} 86. Kh3 {[%clk 0:00:05]}  Qf7 {[%clk 0:00:02]} 87. Bg5 {[%clk 0:00:05]}  Qf3+ {[%clk 0:00:02]} 88. Kh4 {[%clk 0:00:05]}  Qh1+ {[%clk 0:00:02]} 89. Kg3 {[%clk 0:00:06]}  Be5+ {[%clk 0:00:03]} 90. Kf2 {[%clk 0:00:05]}  Qh2+ {[%clk 0:00:04]} 91. Ke3 {[%clk 0:00:05]}  Bd4+ {[%clk 0:00:04]} 92. Ke4 {[%clk 0:00:04]}  Qe5+ {[%clk 0:00:04]} 93. Kd3 {[%clk 0:00:04]}  Qxg5 {[%clk 0:00:05]} 94. Qd7+ {[%clk 0:00:04]}  Qg7 {[%clk 0:00:04]} 95. Qf5+ {[%clk 0:00:04]}  Qg6 {[%clk 0:00:05]} 96. Kc4 {[%clk 0:00:05]}  Qxf5 {[%clk 0:00:05]} 97. gxf5 {[%clk 0:00:06]}  Kg7 {[%clk 0:00:06]} 0-1


[Site "https://www.chess.com"]

[Event "Titled Tuesday Blitz November 01 Early 2022"]
[White "Navara, David"]
[Black "Martinez Alcantara, Jose Eduardo"]
[WhiteFideId "309095"]
[BlackFideId "3805662"]
[WhiteElo "2676"]
[BlackElo "2703"]
[Result "1-0"]
[Round "06"]
[TimeControl "180+1"]
[Date "2022.11.01"]
[WhiteClock "0:00:04"]
[BlackClock "0:00:07"]

1. d4 {[%clk 0:03:00]}  Nf6 {[%clk 0:02:59]} 2. c4 {[%clk 0:03:01]}  e6 {[%clk 0:02:59]} 3. Nc3 {[%clk 0:03:01]}  Bb4 {[%clk 0:02:59]} 4. e3 {[%clk 0:03:01]}  O-O {[%clk 0:02:59]} 5. Bd3 {[%clk 0:03:02]}  d5 {[%clk 0:02:59]} 6. cxd5 {[%clk 0:03:03]}  exd5 {[%clk 0:02:59]} 7. Ne2 {[%clk 0:03:03]}  Re8 {[%clk 0:02:59]} 8. O-O {[%clk 0:03:02]}  Nbd7 {[%clk 0:02:58]} 9. f3 {[%clk 0:02:58]}  c5 {[%clk 0:02:58]} 10. a3 {[%clk 0:02:58]}  Ba5 {[%clk 0:02:50]} 11. b4 {[%clk 0:02:48]}  cxb4 {[%clk 0:02:47]} 12. axb4 {[%clk 0:02:48]}  Bxb4 {[%clk 0:02:48]} 13. Qb3 {[%clk 0:02:49]}  a5 {[%clk 0:02:38]} 14. Nxd5 {[%clk 0:02:39]}  Nxd5 {[%clk 0:02:39]} 15. Qxd5 {[%clk 0:02:39]}  Qe7 {[%clk 0:02:39]} 16. e4 {[%clk 0:02:33]}  Nf6 {[%clk 0:02:39]} 17. Qb3 {[%clk 0:02:29]}  Bd7 {[%clk 0:02:36]} 18. e5 {[%clk 0:02:19]}  Nh5 {[%clk 0:02:17]} 19. g4 {[%clk 0:02:19]}  Qh4 {[%clk 0:02:02]} 20. gxh5 {[%clk 0:02:17]}  Rac8 {[%clk 0:02:01]} 21. Be3 {[%clk 0:02:10]}  Qxh5 {[%clk 0:02:01]} 22. Ng3 {[%clk 0:02:03]}  Qh3 {[%clk 0:02:01]} 23. Rfc1 {[%clk 0:01:57]}  h5 {[%clk 0:01:59]} 24. Bf1 {[%clk 0:01:54]}  Qh4 {[%clk 0:01:58]} 25. Ne4 {[%clk 0:01:44]}  Qe7 {[%clk 0:01:54]} 26. Bg5 {[%clk 0:01:37]}  Qf8 {[%clk 0:01:54]} 27. Bc4 {[%clk 0:01:28]}  b5 {[%clk 0:01:49]} 28. Bd5 {[%clk 0:01:27]}  a4 {[%clk 0:01:48]} 29. Qa2 {[%clk 0:01:21]}  Bf5 {[%clk 0:01:25]} 30. Kh1 {[%clk 0:01:05]}  Rxc1+ {[%clk 0:01:01]} 31. Rxc1 {[%clk 0:01:06]}  Be6 {[%clk 0:01:01]} 32. Rc6 {[%clk 0:00:24]}  Bxd5 {[%clk 0:00:52]} 33. Qxd5 {[%clk 0:00:25]}  a3 {[%clk 0:00:52]} 34. Ra6 {[%clk 0:00:17]}  Kh8 {[%clk 0:00:49]} 35. Qxb5 {[%clk 0:00:16]}  Rb8 {[%clk 0:00:49]} 36. Qc4 {[%clk 0:00:13]}  Rc8 {[%clk 0:00:42]} 37. Qd5 {[%clk 0:00:11]}  Qe8 {[%clk 0:00:38]} 38. Kg2 {[%clk 0:00:08]}  Rc2+ {[%clk 0:00:33]} 39. Kg3 {[%clk 0:00:06]}  Be1+ {[%clk 0:00:33]} 40. Kf4 {[%clk 0:00:07]}  Rc8 {[%clk 0:00:26]} 41. Nd6 {[%clk 0:00:07]}  Bd2+ {[%clk 0:00:10]} 42. Kg3 {[%clk 0:00:07]}  Be1+ {[%clk 0:00:10]} 43. Kf4 {[%clk 0:00:04]}  Bd2+ {[%clk 0:00:10]} 44. Ke4 {[%clk 0:00:05]}  f5+ {[%clk 0:00:11]} 45. Kd3 {[%clk 0:00:05]}  Rc3+ {[%clk 0:00:07]} 46. Kxd2 {[%clk 0:00:04]}  Qb8 {[%clk 0:00:08]} 47. Kxc3 {[%clk 0:00:03]}  Qb2+ {[%clk 0:00:08]} 48. Kd3 {[%clk 0:00:03]}  Qb1+ {[%clk 0:00:07]} 49. Ke2 {[%clk 0:00:03]}  Qc2+ {[%clk 0:00:07]} 50. Bd2 {[%clk 0:00:04]}  Kh7 {[%clk 0:00:07]} 51. Qf7 {[%clk 0:00:03]}  f4 {[%clk 0:00:07]} 52. Qxh5+ {[%clk 0:00:03]}  Kg8 {[%clk 0:00:07]} 53. Ra8+ {[%clk 0:00:04]} 1-0


[Site "https://www.chess.com"]

[Event "Titled Tuesday Blitz November 01 Early 2022"]
[White "Orlov, Georgi"]
[Black "Vifleemskaia, Svetlana"]
[WhiteFideId "2011271"]
[BlackFideId "4129490"]
[WhiteElo "2570"]
[BlackElo "1929"]
[Result "1-0"]
[Round "06"]
[TimeControl "180+1"]
[Date "2022.11.02"]
[WhiteClock "0:00:35"]
[BlackClock "0:00:02"]

1. e4 {[%clk 0:03:00]}  e5 {[%clk 0:02:59]} 2. Nf3 {[%clk 0:02:59]}  Nc6 {[%clk 0:02:59]} 3. Bc4 {[%clk 0:02:56]}  Nf6 {[%clk 0:02:58]} 4. Ng5 {[%clk 0:02:52]}  d5 {[%clk 0:02:57]} 5. exd5 {[%clk 0:02:53]}  Na5 {[%clk 0:02:54]} 6. Bb5+ {[%clk 0:02:52]}  c6 {[%clk 0:02:54]} 7. dxc6 {[%clk 0:02:52]}  bxc6 {[%clk 0:02:55]} 8. Qf3 {[%clk 0:02:50]}  Be7 {[%clk 0:02:54]} 9. Bd3 {[%clk 0:02:45]}  O-O {[%clk 0:02:49]} 10. Nc3 {[%clk 0:02:32]}  Rb8 {[%clk 0:02:42]} 11. O-O {[%clk 0:02:23]}  c5 {[%clk 0:02:40]} 12. Re1 {[%clk 0:02:19]}  c4 {[%clk 0:02:34]} 13. Bf5 {[%clk 0:02:17]}  Bb7 {[%clk 0:02:31]} 14. Qh3 {[%clk 0:02:09]}  h6 {[%clk 0:02:27]} 15. Nge4 {[%clk 0:02:07]}  Nc6 {[%clk 0:01:55]} 16. Nxf6+ {[%clk 0:01:53]}  Bxf6 {[%clk 0:01:54]} 17. d3 {[%clk 0:01:53]}  cxd3 {[%clk 0:01:40]} 18. Bxd3 {[%clk 0:01:49]}  Nb4 {[%clk 0:01:32]} 19. Bf5 {[%clk 0:01:31]}  e4 {[%clk 0:01:21]} 20. Nxe4 {[%clk 0:01:23]}  Nxc2 {[%clk 0:01:19]} 21. Nxf6+ {[%clk 0:01:22]}  Qxf6 {[%clk 0:01:11]} 22. Bxc2 {[%clk 0:01:21]}  Rbc8 {[%clk 0:01:01]} 23. Bb3 {[%clk 0:01:20]}  Qg6 {[%clk 0:00:40]} 24. Be3 {[%clk 0:01:14]}  a5 {[%clk 0:00:37]} 25. Qg3 {[%clk 0:01:12]}  Qf6 {[%clk 0:00:34]} 26. Rad1 {[%clk 0:01:04]}  Rfe8 {[%clk 0:00:19]} 27. Rd7 {[%clk 0:00:55]}  Re7 {[%clk 0:00:11]} 28. Rxe7 {[%clk 0:00:49]}  Qxe7 {[%clk 0:00:11]} 29. Rd1 {[%clk 0:00:45]}  Rd8 {[%clk 0:00:06]} 30. Rxd8+ {[%clk 0:00:42]}  Qxd8 {[%clk 0:00:07]} 31. h3 {[%clk 0:00:40]}  Be4 {[%clk 0:00:02]} 32. Bxh6 {[%clk 0:00:35]} 1-0


[Site "https://www.chess.com"]